Workbook

Sheet Accueil
B2: PanNote
B4: Tutoriel | E4: La gestion des notes :
A12: Moyenne semestre 1 : | D12: Moyenne semestre 2 : | G12: Moyenne Annuelle : | J12: Niveau 1 :
A14: Compétence 1 | B14: =IFERROR(PanPan!B16,"") -> 12.7 | D14: Compétence 1 | E14: =IFERROR(PanPan!D16,"") -> 15.39285714 | G14: Compétence 1 | H14: =IFERROR(AVERAGE(B14,E14),"") -> 14.04642857 | J14: Compétence 1 | K14: =IFERROR(_xlfn.IFS(H14="","",H14>=10,"Oui",H14<10,"Non"),"") -> Oui
A15: Compétence 2 | B15: =IFERROR(PanPan!B28,"") -> 13.93333333 | D15: Compétence 2 | E15: =IFERROR(PanPan!D28,"") -> 13 | G15: Compétence 2 | H15: =IFERROR(AVERAGE(B15,E15),"") -> 13.46666667 | J15: Compétence 2 | K15: =IFERROR(_xlfn.IFS(H15="","",H15>=10,"Oui",H15<10,"Non"),"") -> Oui
A16: Compétence 3 | B16: =IFERROR(PanPan!B38,"") -> 15.08683333 | D16: Compétence 3 | E16: =IFERROR(PanPan!D38,"") -> 12.66666667 | G16: Compétence 3 | H16: =IFERROR(AVERAGE(B16,E16),"") -> 13.87675 | J16: Compétence 3 | K16: =IFERROR(_xlfn.IFS(H16="","",H16>=10,"Oui",H16<10,"Non"),"") -> Oui
A20: Passage en deuxième année : | C20: =IF(AND(PanPan!H9="Accepté",PanPan!H10="Accepté"),"Accepté","Refusé") -> Accepté
A22: Nombre de bloc de compétence inférieur à 8 | B22: Nombre de bloc de compétence compris entre 8 et 10 | C22: Nombre de bloc de compétence supérieur ou égal à 10 | D22: Aucun bloc de compétence avec : ABI
A23: =COUNTIF(H14:H16,"<8") -> 0 | B23: =COUNTIFS(H14:H16,">=8",H14:H16,"<10") -> 0 | C23: =COUNTIF(H14:H16,">=10") -> 3 | D23: =IF(AND(PanPan!H5="Oui",PanPan!I5="Oui"),"Oui","Non") -> Oui

Sheet Semestre1
B1: Semestre 1
B2: Ressource | C2: Coefficient | D2: Note | G2: Moyenne par ressource
A3: Compétence 1 | B3: PPP1 | C3: 5 | D3: 13 | E3: 16.5 | F3: 15 | G3: =IFERROR(AVERAGEIF(D3:F3,"<>""",D3:F3),"") -> 14.83333333
B4: Tableur et Reporting | C4: 15 | D4: 11 | E4: 8 | G4: =IFERROR(AVERAGEIF(D4:F4,"<>""",D4:F4),"") -> 9.5
B5: Base de données relationnelles 1 | C5: 20 | D5: 14 | E5: 15 | G5: 14.5
B6: Bases de la programmation 1 | C6: 20 | D6: 12.5 | E6: 10 | F6: 8 | G6: 10.16666667
B7: SAE - Reporting à partir de données stockées dans un SGBD relationnel | C7: 30 | D7: 14 | G7: 14
B8: SAE - Ecriture et lecture des fichiers de données | C8: 10 | D8: 14 | G8: 14
A11: Compétence 2 | B11: PPP1 | C11: 5 | D11: 13 | E11: 16.5 | F11: 15 | G11: 14.83333333
B12: Statistique descriptive 1 | C12: 20 | D12: 15.75 | E12: 17 | G12: 16.375
B13: Probabilités 1 | C13: 15 | D13: 10 | E13: 16 | G13: 13
B14: Mathématiques - Analyse | C14: 20 | D14: 15 | E14: 15.5 | F14: 14 | G14: 14.83333333
B15: SAE - Préparation et synthèse d'un tableau de données en vue d'une analyse exploratoire simple | C15: 40 | D15: 12.5 | G15: 12.5
A18: Compétence 3 | B18: PPP1 | C18: 5 | D18: 13 | E18: 16.5 | F18: 15 | G18: 14.83333333
B19: Initiation à l'anglais de spécialité | C19: 15 | D19: 10 | E19: 14 | F19: 10 | G19: 11.33333333
B20: Communication de l'information et recherche documentaire | C20: 15 | D20: 9.5 | E20: 16.66 | G20: 13.08
B21: Découverte des données de l'environnement entrepreunarial et économique | C21: 25 | D21: 19.5 | E21: 18.5 | F21: 18 | G21: 18.66666667
B22: SAE - Apprendre en situation la production de données en entreprise | C22: 15 | D22: 17.5 | G22: 17.5
B23: SAE - Présentation en anglais d'un territoire économique et culturel | C23: 10 | D23: 10 | E23: 14.32999992 | G23: 12.16499996
B24: SAE - Mise en œuvre d'une enquête | C24: 15 | D24: 14.5 | G24: =IFERROR(AVERAGEIF(D24:F24,"<>""",D24:F24),"") -> 14.5

Sheet Semestre2
B1: Semestre 2
B2: Ressource | C2: Coefficient | D2: Note | G2: Moyenne par ressource
A3: Compétence 1 | B3: PPP2 | C3: 5 | D3: 14 | G3: =IFERROR(AVERAGEIF(D3:F3,"<>""",D3:F3),"") -> 14
B4: Bases de données relationnelles 2 | C4: 15 | D4: 17.5 | E4: 17 | G4: =IFERROR(AVERAGEIF(D4:F4,"<>""",D4:F4),"") -> 17.25
B5: Bases de la programmation 2 | C5: 15 | D5: 15.75 | G5: =IFERROR(AVERAGEIF(D5:F5,"<>""",D5:F5),"") -> 15.75
B6: Programation statistique | C6: 15 | D6: 15.5 | G6: 15.5
B7: Reporting et datavisualisation | C7: 10
B8: SAE - Analyse de données, reporting et datavisualisation | C8: 20 | D8: 14 | G8: 14
B9: SAE - Conception et implémentation d'une base de données | C9: 10
B10: SAE - Datavisualisation | C10: 5
B11: SAE - Portfolio | C11: 5
A14: Compétence 2 | B14: PPP2 | C14: 5 | D14: 14 | G14: 14
B15: Statistique descriptive 2 | C15: 10 | D15: 12 | G15: 12
B16: Statistique inférentielle | C16: 15 | D16: 10 | G16: 10
B17: Probabilités 2 | C17: 15 | D17: 14 | E17: 18 | G17: 16
B18: Bases de l'algèbre | C18: 15
B19: SAE - Analyse de données, reporting et datavisualisation | C19: 10
B20: SAE - Estimation par échantillonage | C20: 10
B21: SAE - Régression sur des données réelles | C21: 10 | D21: 13.5 | G21: 13.5
B22: =_xlfn.IFS(B19>1,"Refusé",AND(B19<=1,B21>=2),"Accepté",B21=0,"Refusé",Semestre2!G6="ABI","Refusé") -> Refusé | C22: 5
B23: SAE - Portfolio | C23: 5
A26: Compétence 3 | B26: PPP2 | C26: 5 | D26: 14 | G26: 14
B27: Approfondissement de l'anglais de spécialité | C27: 15 | D27: 10 | G27: 10
B28: Communication et sémiolmogie | C28: 15
B29: Etude des données de l'environnement entrepreneurial et économique | C29: 25 | D29: 16 | E29: 11 | F29: 15 | G29: 14
B30: SAE - Analyse de données, reporting et datavisualisation | C30: 20
B31: SAE - Construction et présentation d'indicateurs de performance | C31: 10
B32: SAE - Datavisualisation | C32: 5
B33: SAE - Portfolio | C33: 5

Sheet PanPan (hidden)
A1: Semestre | B1: Semestre1
A2: compétence | B2: Compétence 2
A3: ressource | B3: SAE - Préparation et synthèse d'un tableau de données en vue d'une analyse exploratoire simple | H3: nombre de bloc d'ABI semestre 1 | I3: nombre de bloc d'ABI semestre 2 | K3: Aucun blos des 2 semestres avec : ABI
A4: Note | B4: 1 | H4: =COUNTIF(Semestre1!D3:F24,"=ABI") -> 0 | I4: =COUNTIF(Semestre2!D3:F33,"=ABI") -> 0 | K4: =IF(AND(H5="Oui",I5="Oui"),"Oui","Non") -> Oui
B5: Semestre 1 | D5: Semestre 2 | G5: Aucun bloc avec : ABI | H5: =IF(H4=0,"Oui","Non") -> Oui | I5: =IF(I4=0,"Oui","Non") -> Oui
A6: Cpt 1 | B6: =IFERROR(IF(Semestre1!G3="","",Semestre1!G3*Semestre1!C3),"") -> 74.16666667 | C6: =IF(Semestre1!G3="","",Semestre1!C3) -> 5 | D6: =IFERROR(IF(Semestre2!G3="","",Semestre2!G3*Semestre2!C3),"") -> 70 | E6: =IF(Semestre2!G3="","",Semestre2!C3) -> 5
B7: =IFERROR(IF(Semestre1!G4="","",Semestre1!G4*Semestre1!C4),"") -> 142.5 | C7: =IF(Semestre1!G4="","",Semestre1!C4) -> 15 | D7: =IFERROR(IF(Semestre2!G4="","",Semestre2!G4*Semestre2!C4),"") -> 258.75 | E7: =IF(Semestre2!G4="","",Semestre2!C4) -> 15
B8: =IFERROR(IF(Semestre1!G5="","",Semestre1!G5*Semestre1!C5),"") -> 290 | C8: =IF(Semestre1!G5="","",Semestre1!C5) -> 20 | D8: =IFERROR(IF(Semestre2!G5="","",Semestre2!G5*Semestre2!C5),"") -> 236.25 | E8: =IF(Semestre2!G5="","",Semestre2!C5) -> 15
B9: =IFERROR(IF(Semestre1!G6="","",Semestre1!G6*Semestre1!C6),"") -> 203.3333333 | C9: =IF(Semestre1!G6="","",Semestre1!C6) -> 20 | D9: =IFERROR(IF(Semestre2!G6="","",Semestre2!G6*Semestre2!C6),"") -> 232.5 | E9: =IF(Semestre2!G6="","",Semestre2!C6) -> 15 | G9: passage en deuxième année avec les notes | H9: =IF(AND(Accueil!A23=0, Accueil!C23>=2), "Accepté", "Refusé") -> Accepté
B10: =IFERROR(IF(Semestre1!G7="","",Semestre1!G7*Semestre1!C7),"") -> 420 | C10: =IF(Semestre1!G7="","",Semestre1!C7) -> 30 | D10: =IFERROR(IF(Semestre2!G7="","",Semestre2!G7*Semestre2!C7),"") ->  | E10: =IF(Semestre2!G7="","",Semestre2!C7) ->  | G10: Passage en deuxième année (ABI ) | H10: =IF(K4="Oui","Accepté","Refusé") -> Accepté
B11: =IFERROR(IF(Semestre1!G8="","",Semestre1!G8*Semestre1!C8),"") -> 140 | C11: =IF(Semestre1!G8="","",Semestre1!C8) -> 10 | D11: =IFERROR(IF(Semestre2!G8="","",Semestre2!G8*Semestre2!C8),"") -> 280 | E11: =IF(Semestre2!G8="","",Semestre2!C8) -> 20
D12: =IFERROR(IF(Semestre2!G9="","",Semestre2!G9*Semestre2!C9),"") ->  | E12: =IF(Semestre2!G9="","",Semestre2!C9) -> 
D13: =IFERROR(IF(Semestre2!G10="","",Semestre2!G10*Semestre2!C10),"") ->  | E13: =IF(Semestre2!G10="","",Semestre2!C10) -> 
D14: =IFERROR(IF(Semestre2!G11="","",Semestre2!G11*Semestre2!C11),"") ->  | E14: =IF(Semestre2!G11="","",Semestre2!C11) -> 
A15: total | B15: =SUMIF(B6:B11,"<>0",B6:B11) -> 1270 | C15: =SUMIF(C6:C11,"<>0",C6:C11) -> 100 | D15: =SUMIF(D6:D14,"<>0",D6:D14) -> 1077.5 | E15: =SUMIF(E6:E14,"<>0",E6:E14) -> 70
A16: moyenne | B16: =IFERROR(B15/C15,"") -> 12.7 | D16: =IFERROR(D15/E15,"") -> 15.39285714
A17: Cpt 2 | B17: =IFERROR(IF(Semestre1!G11="","",Semestre1!G11*Semestre1!C11),"") -> 74.16666667 | C17: =IF(Semestre1!G11="","",Semestre1!C11) -> 5 | D17: =IFERROR(IF(Semestre2!G14="","",Semestre2!G14*Semestre2!C14),"") -> 70 | E17: =IF(Semestre2!G14="","",Semestre2!C14) -> 5
B18: =IFERROR(IF(Semestre1!G12="","",Semestre1!G12*Semestre1!C12),"") -> 327.5 | C18: =IF(Semestre1!G12="","",Semestre1!C12) -> 20 | D18: =IFERROR(IF(Semestre2!G15="","",Semestre2!G15*Semestre2!C15),"") -> 120 | E18: =IF(Semestre2!G15="","",Semestre2!C15) -> 10
B19: =IFERROR(IF(Semestre1!G13="","",Semestre1!G13*Semestre1!C13),"") -> 195 | C19: =IF(Semestre1!G13="","",Semestre1!C13) -> 15 | D19: =IFERROR(IF(Semestre2!G16="","",Semestre2!G16*Semestre2!C16),"") -> 150 | E19: =IF(Semestre2!G16="","",Semestre2!C16) -> 15
B20: =IFERROR(IF(Semestre1!G14="","",Semestre1!G14*Semestre1!C14),"") -> 296.6666667 | C20: =IF(Semestre1!G14="","",Semestre1!C14) -> 20 | D20: =IFERROR(IF(Semestre2!G17="","",Semestre2!G17*Semestre2!C17),"") -> 240 | E20: =IF(Semestre2!G17="","",Semestre2!C17) -> 15
B21: =IFERROR(IF(Semestre1!G15="","",Semestre1!G15*Semestre1!C15),"") -> 500 | C21: =IF(Semestre1!G15="","",Semestre1!C15) -> 40 | D21: =IFERROR(IF(Semestre2!G18="","",Semestre2!G18*Semestre2!C18),"") ->  | E21: =IF(Semestre2!G18="","",Semestre2!C18) -> 
D22: =IFERROR(IF(Semestre2!G19="","",Semestre2!G19*Semestre2!C19),"") ->  | E22: =IF(Semestre2!G19="","",Semestre2!C19) -> 
D23: =IFERROR(IF(Semestre2!G20="","",Semestre2!G20*Semestre2!C20),"") ->  | E23: =IF(Semestre2!G20="","",Semestre2!C20) -> 
D24: =IFERROR(IF(Semestre2!G21="","",Semestre2!G21*Semestre2!C21),"") -> 135 | E24: =IF(Semestre2!G21="","",Semestre2!C21) -> 10
D25: =IFERROR(IF(Semestre2!G22="","",Semestre2!G22*Semestre2!C22),"") ->  | E25: =IF(Semestre2!G22="","",Semestre2!C22) -> 
D26: =IFERROR(IF(Semestre2!G23="","",Semestre2!G23*Semestre2!C23),"") ->  | E26: =IF(Semestre2!G23="","",Semestre2!C23) -> 
A27: total | B27: =SUMIF(B17:B21,"<>0",B17:B21) -> 1393.333333 | C27: =SUMIF(C17:C21,"<>0",C17:C21) -> 100 | D27: =SUMIF(D17:D26,"<>0",D17:D26) -> 715 | E27: =SUMIF(E17:E26,"<>0",E17:E26) -> 55
A28: moyenne | B28: =IFERROR(B27/C27,"") -> 13.93333333 | D28: =IFERROR(D27/E27,"") -> 13
A29: Cpt 3 | B29: =IFERROR(IF(Semestre1!G18="","",Semestre1!G18*Semestre1!C18),"") -> 74.16666667 | C29: =IF(Semestre1!G18="","",Semestre1!C18) -> 5 | D29: =IFERROR(IF(Semestre2!G26="","",Semestre2!G26*Semestre2!C26),"") -> 70 | E29: =IF(Semestre2!G26="","",Semestre2!C26) -> 5
B30: =IFERROR(IF(Semestre1!G19="","",Semestre1!G19*Semestre1!C19),"") -> 170 | C30: =IF(Semestre1!G19="","",Semestre1!C19) -> 15 | D30: =IFERROR(IF(Semestre2!G27="","",Semestre2!G27*Semestre2!C27),"") -> 150 | E30: =IF(Semestre2!G27="","",Semestre2!C27) -> 15
B31: =IFERROR(IF(Semestre1!G20="","",Semestre1!G20*Semestre1!C20),"") -> 196.2 | C31: =IF(Semestre1!G20="","",Semestre1!C20) -> 15 | D31: =IFERROR(IF(Semestre2!G28="","",Semestre2!G28*Semestre2!C28),"") ->  | E31: =IF(Semestre2!G28="","",Semestre2!C28) -> 
B32: =IFERROR(IF(Semestre1!G21="","",Semestre1!G21*Semestre1!C21),"") -> 466.6666667 | C32: =IF(Semestre1!G21="","",Semestre1!C21) -> 25 | D32: =IFERROR(IF(Semestre2!G29="","",Semestre2!G29*Semestre2!C29),"") -> 350 | E32: =IF(Semestre2!G29="","",Semestre2!C29) -> 25
B33: =IFERROR(IF(Semestre1!G22="","",Semestre1!G22*Semestre1!C22),"") -> 262.5 | C33: =IF(Semestre1!G22="","",Semestre1!C22) -> 15 | D33: =IFERROR(IF(Semestre2!G30="","",Semestre2!G30*Semestre2!C30),"") ->  | E33: =IF(Semestre2!G30="","",Semestre2!C30) -> 
B34: =IFERROR(IF(Semestre1!G23="","",Semestre1!G23*Semestre1!C23),"") -> 121.6499996 | C34: =IF(Semestre1!G23="","",Semestre1!C23) -> 10 | D34: =IFERROR(IF(Semestre2!G31="","",Semestre2!G31*Semestre2!C31),"") ->  | E34: =IF(Semestre2!G31="","",Semestre2!C31) -> 
B35: =IFERROR(IF(Semestre1!G24="","",Semestre1!G24*Semestre1!C24),"") -> 217.5 | C35: =IF(Semestre1!G24="","",Semestre1!C24) -> 15 | D35: =IFERROR(IF(Semestre2!G32="","",Semestre2!G32*Semestre2!C32),"") ->  | E35: =IF(Semestre2!G32="","",Semestre2!C32) -> 
D36: =IFERROR(IF(Semestre2!G33="","",Semestre2!G33*Semestre2!C33),"") ->  | E36: =IF(Semestre2!G33="","",Semestre2!C33) -> 
A37: total | B37: =SUMIF(B29:B35,"<>0",B29:B35) -> 1508.683333 | C37: =SUMIF(C29:C35,"<>0",C29:C35) -> 100 | D37: =SUMIF(D29:D36,"<>0",D29:D36) -> 570 | E37: =SUMIF(E29:E36,"<>0",E29:E36) -> 45
A38: moyenne | B38: =IFERROR(B37/C37,"") -> 15.08683333 | D38: =IFERROR(D37/E37,"") -> 12.66666667
